{"text_format":"3","workbook":"xlsx","n_sheets":8,"sheets":["Інструкції","Регулярні контакти","Випадкові знайомі","Перспективні зв’язки","Мережевий план за 1 квартал","Мережевий план за 2 квартал","Мережевий план за 3 квартал","Мережевий план за 4 квартал"],"not_rendered":{"defined_names":7},"read":"whole","date_system":"1900"}

{"sheet":"Інструкції","index":0,"n_rows":17,"n_cols":5,"rows_kept":17,"merged":[[0,0,0,2],[1,1,1,6],[2,1,2,6],[3,1,3,6],[4,1,4,6],[5,1,5,6],[6,1,6,6],[7,1,7,6],[8,1,8,6],[9,1,9,6],[10,1,10,6],[11,1,11,6]]}
["Відстеження кола спілкування",null,null,"Інструкції"]
[null,"1. Виберіть, до якої категорії належить контактна особа:"]
[null,"• Регулярні контакти – особи, з якими ви хотіли б підтримувати зв’язок на регулярній основі"]
[null,"• Випадкові знайомі – особи, з якими ви хотіли б зв’язуватися кілька разів на рік "]
[null,"• Перспективні зв’язки – люди або компанії, інформацію про яких ви хотіли б зберегти у файлі, щоб зв’язатися з ними в потрібний час"]
[null,"2. Відкрийте відповідну вкладку аркуша."]
[null,"3. Введіть їхні дані (щоб створити рядок у клітинці, натисніть клавіші Alt+Enter у Windows або Option+Return на комп’ютері Mac)."]
[null,"Ознайомтеся з новими інструкціями щодо використання мобільних програм Excel."]
[null,"4. У стовпці \"Дата для подальшого зв’язку\" видаліть зразок дати або формули, введіть, коли хочете зв’язатися з ними, \nа потім натисніть клавішу Enter."]
[null,"5. Стовпець \"Дата для подальшого зв’язку\" відображатиметься червоним кольором, якщо дата вже близько, жовтим, якщо вона наближається, і \nзеленим, коли у вас ще багато часу."]
[null,"6. З наближенням дати колір зміниться відповідним чином."]
[null,"7. Після того, як ви зв’яжетеся з контактною особою, введіть \"ТАК\" у стовпці \"Готово?\". Дата стане неактивною. "]
[null,"8. Щоб повторно зв’язатися з контактною особою, замініть значення \"ТАК\" на \"НІ\" та введіть нову дату для подальшого зв’язку."]
[null,null,"Червоний","Жовтий","Зелений"]
[null,"Регулярні контакти","За 1–3 дні","За 4–7 днів.","За 8–14 і більше днів"]
[null,"Випадкові знайомі","За 1–7 днів","За 8–45 днів.","За 46–90 і більше днів"]
[null,"Перспективні зв’язки","За 1–14 днів","За 15–60 днів","За 60–120 і більше днів"]

{"sheet":"Регулярні контакти","index":1,"n_rows":7,"n_cols":8,"rows_kept":7,"merged":[[0,0,0,2]]}
["Відстеження кола спілкування",null,null,"Регулярні контакти"]
[]
["Ім’я","Компанія","Контактна інформація","Місце зустрічі","Нотатки","Дата для подальшого зв’язку","Виконано","Нотатки з розмови"]
["Григорій Дігтяр","Adventure Works.","Керівник проекту\ngregory@adventure-works.com\n(234) 555-0134\nadventure-works.com\nlinkedin.com/in/gregory-dekhtyar","Виставка 2010","Запитайте про дочку Марину та про те, як просувається ремонт. Не любить великі компанії та гостру їжу.",{"$f":"TODAY()+8","v":"2021-07-24"},"НІ"]
["Ім’я","Назва компанії","Посада\nАдреса електронної пошти\nНомер телефону\nВеб-сайт\nПосилання на соціальні профілі\n","Розташування","Додайте нотатки про цю особу: де ви познайомилися, про що говорили, про що потрібно поговорити наступного разу тощо.",{"$f":"TODAY()-3","v":"2021-07-13"},"ТАК"]
["Ім’я","Назва компанії","Посада\nАдреса електронної пошти\nНомер телефону\nВеб-сайт\nПосилання на соціальні профілі\n","Розташування","Додайте нотатки про цю особу: де ви познайомилися, про що говорили, про що потрібно поговорити наступного разу тощо.",{"$f":"TODAY()+-3","v":"2021-07-13"},"НІ"]
["Ім’я","Назва компанії","Посада\nАдреса електронної пошти\nНомер телефону\nВеб-сайт\nПосилання на соціальні профілі\n","Розташування","Додайте нотатки про цю особу: де ви познайомилися, про що говорили, про що потрібно поговорити наступного разу тощо.",{"$f":"TODAY()+6","v":"2021-07-22"},"НІ"]

{"sheet":"Випадкові знайомі","index":2,"n_rows":7,"n_cols":8,"rows_kept":7,"merged":[[0,0,0,2]]}
["Відстеження кола спілкування",null,null,"Випадкові знайомі"]
[]
["Ім’я","Компанія","Контактна інформація","Місце зустрічі","Нотатки","Дата для подальшого зв’язку","Виконано","Нотатки з розмови"]
["Григорій Дігтяр","Adventure Works.","Менеджер із ресурсів\ngregory@adventure-works.com\n(434) 555-0123\nwww.adventure-works.com\nlinkedin.com/in/gregory-dekhtyar","Відпустка у Вермонті 2016","Зручно як для найму персоналу, так і для вирішення маркетингових питань.",{"$f":"TODAY()+90","v":"2021-10-14"},"НІ"]
["Ім’я","Назва компанії","Посада\nАдреса електронної пошти\nНомер телефону\nВеб-сайт\nПосилання на соціальні профілі\n","Розташування","Додайте нотатки про цю особу: де ви познайомилися, про що говорили, про що потрібно поговорити наступного разу тощо.",{"$f":"TODAY()-3","v":"2021-07-13"},"ТАК"]
["Ім’я","Назва компанії","Посада\nАдреса електронної пошти\nНомер телефону\nВеб-сайт\nПосилання на соціальні профілі\n","Розташування","Додайте нотатки про цю особу: де ви познайомилися, про що говорили, про що потрібно поговорити наступного разу тощо.",{"$f":"TODAY()+-3","v":"2021-07-13"},"НІ"]
["Ім’я","Назва компанії","Посада\nАдреса електронної пошти\nНомер телефону\nВеб-сайт\nПосилання на соціальні профілі\n","Розташування","Додайте нотатки про цю особу: де ви познайомилися, про що говорили, про що потрібно поговорити наступного разу тощо.",{"$f":"TODAY()+40","v":"2021-08-25"},"НІ"]

{"sheet":"Перспективні зв’язки","index":3,"n_rows":7,"n_cols":8,"rows_kept":7,"merged":[[0,0,0,2]]}
["Відстеження кола спілкування",null,null,"Перспективні зв’язки"]
[]
["Ім’я","Компанія","Контактна інформація","Місце зустрічі","Нотатки","Дата для подальшого зв’язку","Виконано","Нотатки з розмови"]
["Григорій Дігтяр","Фрілансер","Дизайнер\nabc@example.com\n425-555-0123\nexample.com\nlinkedin.com/in/gregory-dekhtyar","Випуск сина 2016","Молодий спеціаліст, дуже талановитий. Може бути корисним для майбутніх клієнтів.",{"$f":"TODAY()+89","v":"2021-10-13"},"НІ"]
["Ім’я","Назва компанії","Посада\nАдреса електронної пошти\nНомер телефону\nВеб-сайт\nПосилання на соціальні профілі\n","Розташування","Додайте нотатки про цю особу: де ви познайомилися, про що говорили, про що потрібно поговорити наступного разу тощо.",{"$f":"TODAY()-3","v":"2021-07-13"},"ТАК"]
["Ім’я","Назва компанії","Посада\nАдреса електронної пошти\nНомер телефону\nВеб-сайт\nПосилання на соціальні профілі\n","Розташування","Додайте нотатки про цю особу: де ви познайомилися, про що говорили, про що потрібно поговорити наступного разу тощо.",{"$f":"TODAY()+-3","v":"2021-07-13"},"НІ"]
["Ім’я","Назва компанії","Посада\nАдреса електронної пошти\nНомер телефону\nВеб-сайт\nПосилання на соціальні профілі\n","Розташування","Додайте нотатки про цю особу: де ви познайомилися, про що говорили, про що потрібно поговорити наступного разу тощо.",{"$f":"TODAY()+30","v":"2021-08-15"},"НІ"]

{"sheet":"Мережевий план за 1 квартал","index":4,"n_rows":20,"n_cols":6,"rows_kept":20,"merged":[[0,0,0,3],[2,0,2,3],[4,0,4,3],[14,5,17,5],[18,0,18,3]]}
["План розширення мережі"]
["Інструкції"]
["Напишіть, як ви плануєте розширити мережу контактів у цьому кварталі (наприклад, зробити більше дзвінків, більше подорожувати тощо). Кожен раз, коли ви заводите нові знайомства, змінюйте фактичну кількість контактів, щоб слідкувати за тим, які ви наближаєтеся до своєї цілі."]
[]
["Як я планую розширювати мережу контактів у цьому кварталі"]
["1. Здійснювати більше дзвінків."]
["2. Більше подорожувати."]
[]
[]
[]
[]
[]
[]
["Цільова кількість знайомств за квартал","Крайній термін","Фактична кількість знайомств за квартал","Результати"]
[20,{"$f":"TODAY()","v":"2021-07-16"},12,{"$f":"IF(tblGoals[[#This Row],[Цільова кількість знайомств за квартал]]>0,tblGoals[[#This Row],[Фактична кількість знайомств за квартал]]/tblGoals[[#This Row],[Цільова кількість знайомств за квартал]],\"\")","v":{"v":0.6,"d":"60%"}},null,"Від 0 % до 25 %\nВід 26 % до 50 %\nВід 51 % до 75 %\nВід 76 % до 100 %\n\nКолір змінюється в міру наближення до мети"]
[{"$nulls":3},{"$f":"IF(tblGoals[[#This Row],[Цільова кількість знайомств за квартал]]>0,tblGoals[[#This Row],[Фактична кількість знайомств за квартал]]/tblGoals[[#This Row],[Цільова кількість знайомств за квартал]],\"\")","v":""}]
[{"$nulls":3},{"$f":"IF(tblGoals[[#This Row],[Цільова кількість знайомств за квартал]]>0,tblGoals[[#This Row],[Фактична кількість знайомств за квартал]]/tblGoals[[#This Row],[Цільова кількість знайомств за квартал]],\"\")","v":""}]
[]
["Відображення результатів і нотатки щодо вдосконалення"]
["Майже вийшло. Спробуйте зателефонувати в обід."]

{"sheet":"Мережевий план за 2 квартал","index":5,"n_rows":20,"n_cols":6,"rows_kept":20,"merged":[[0,0,0,3],[2,0,2,3],[4,0,4,3],[14,5,17,5],[18,0,18,3]]}
["План розширення мережі"]
["Інструкції"]
["Напишіть, як ви плануєте розширити мережу контактів у цьому кварталі (наприклад, зробити більше дзвінків, більше подорожувати тощо). Кожен раз, коли ви заводите нові знайомства, змінюйте фактичну кількість контактів, щоб слідкувати за тим, які ви наближаєтеся до своєї цілі."]
[]
["Як я планую розширювати мережу контактів у цьому кварталі"]
["1. Здійснювати більше дзвінків."]
["2. Більше подорожувати."]
[]
[]
[]
[]
[]
[]
["Цільова кількість знайомств за квартал","Крайній термін","Фактична кількість знайомств за квартал","Результати"]
[20,{"$f":"TODAY()","v":"2021-07-16"},12,{"$f":"IF(tblGoals3[[#This Row],[Цільова кількість знайомств за квартал]]>0,tblGoals3[[#This Row],[Фактична кількість знайомств за квартал]]/tblGoals3[[#This Row],[Цільова кількість знайомств за квартал]],\"\")","v":{"v":0.6,"d":"60%"}},null,"Від 0 % до 25 %\nВід 26 % до 50 %\nВід 51 % до 75 %\nВід 76 % до 100 %\n\nКолір змінюється в міру наближення до мети"]
[{"$nulls":3},{"$f":"IF(tblGoals3[[#This Row],[Цільова кількість знайомств за квартал]]>0,tblGoals3[[#This Row],[Фактична кількість знайомств за квартал]]/tblGoals3[[#This Row],[Цільова кількість знайомств за квартал]],\"\")","v":""}]
[{"$nulls":3},{"$f":"IF(tblGoals3[[#This Row],[Цільова кількість знайомств за квартал]]>0,tblGoals3[[#This Row],[Фактична кількість знайомств за квартал]]/tblGoals3[[#This Row],[Цільова кількість знайомств за квартал]],\"\")","v":""}]
[]
["Відображення результатів і нотатки щодо вдосконалення"]
["Майже вийшло. Спробуйте зателефонувати в обід."]

{"sheet":"Мережевий план за 3 квартал","index":6,"n_rows":20,"n_cols":6,"rows_kept":20,"merged":[[0,0,0,3],[2,0,2,3],[4,0,4,3],[14,5,17,5],[18,0,18,3]]}
["План розширення мережі"]
["Інструкції"]
["Напишіть, як ви плануєте розширити мережу контактів у цьому кварталі (наприклад, зробити більше дзвінків, більше подорожувати тощо). Кожен раз, коли ви заводите нові знайомства, змінюйте фактичну кількість контактів, щоб слідкувати за тим, які ви наближаєтеся до своєї цілі."]
[]
["Як я планую розширювати мережу контактів у цьому кварталі"]
["1. Здійснювати більше дзвінків."]
["2. Більше подорожувати."]
[]
[]
[]
[]
[]
[]
["Цільова кількість знайомств за квартал","Крайній термін","Фактична кількість знайомств за квартал","Результати"]
[20,{"$f":"TODAY()","v":"2021-07-16"},12,{"$f":"IF(tblGoals34[[#This Row],[Цільова кількість знайомств за квартал]]>0,tblGoals34[[#This Row],[Фактична кількість знайомств за квартал]]/tblGoals34[[#This Row],[Цільова кількість знайомств за квартал]],\"\")","v":{"v":0.6,"d":"60%"}},null,"Від 0 % до 25 %\nВід 26 % до 50 %\nВід 51 % до 75 %\nВід 76 % до 100 %\n\nКолір змінюється в міру наближення до мети"]
[{"$nulls":3},{"$f":"IF(tblGoals34[[#This Row],[Цільова кількість знайомств за квартал]]>0,tblGoals34[[#This Row],[Фактична кількість знайомств за квартал]]/tblGoals34[[#This Row],[Цільова кількість знайомств за квартал]],\"\")","v":""}]
[{"$nulls":3},{"$f":"IF(tblGoals34[[#This Row],[Цільова кількість знайомств за квартал]]>0,tblGoals34[[#This Row],[Фактична кількість знайомств за квартал]]/tblGoals34[[#This Row],[Цільова кількість знайомств за квартал]],\"\")","v":""}]
[]
["Відображення результатів і нотатки щодо вдосконалення"]
["Майже вийшло. Спробуйте зателефонувати в обід."]

{"sheet":"Мережевий план за 4 квартал","index":7,"n_rows":20,"n_cols":6,"rows_kept":20,"merged":[[0,0,0,3],[2,0,2,3],[4,0,4,3],[14,5,17,5],[18,0,18,3]]}
["План розширення мережі"]
["Інструкції"]
["Напишіть, як ви плануєте розширити мережу контактів у цьому кварталі (наприклад, зробити більше дзвінків, більше подорожувати тощо). Кожен раз, коли ви заводите нові знайомства, змінюйте фактичну кількість контактів, щоб слідкувати за тим, які ви наближаєтеся до своєї цілі."]
[]
["Як я планую розширювати мережу контактів у цьому кварталі"]
["1. Здійснювати більше дзвінків."]
["2. Більше подорожувати."]
[]
[]
[]
[]
[]
[]
["Цільова кількість знайомств за квартал","Крайній термін","Фактична кількість знайомств за квартал","Результати"]
[20,{"$f":"TODAY()","v":"2021-07-16"},12,{"$f":"IF(tblGoals348[[#This Row],[Цільова кількість знайомств за квартал]]>0,tblGoals348[[#This Row],[Фактична кількість знайомств за квартал]]/tblGoals348[[#This Row],[Цільова кількість знайомств за квартал]],\"\")","v":{"v":0.6,"d":"60%"}},null,"Від 0 % до 25 %\nВід 26 % до 50 %\nВід 51 % до 75 %\nВід 76 % до 100 %\n\nКолір змінюється в міру наближення до мети"]
[{"$nulls":3},{"$f":"IF(tblGoals348[[#This Row],[Цільова кількість знайомств за квартал]]>0,tblGoals348[[#This Row],[Фактична кількість знайомств за квартал]]/tblGoals348[[#This Row],[Цільова кількість знайомств за квартал]],\"\")","v":""}]
[{"$nulls":3},{"$f":"IF(tblGoals348[[#This Row],[Цільова кількість знайомств за квартал]]>0,tblGoals348[[#This Row],[Фактична кількість знайомств за квартал]]/tblGoals348[[#This Row],[Цільова кількість знайомств за квартал]],\"\")","v":""}]
[]
["Відображення результатів і нотатки щодо вдосконалення"]
["Майже вийшло. Спробуйте зателефонувати в обід."]